bitfinex-derivatives/quotes_BNBF0:USTF0_20250807
["timestamp","ask_amount","ask_price","bid_price","bid_amount"]
[1754584308789,0.812,775.7,775.2,1.14848254]
[1754584308790,0.812,775.7,775.35,0.86280618]
[1754584309485,0.812,775.7,775.36,0.86280618]
[1754584309790,0.812,775.7,775.37,0.86280618]
[1754584310184,0.812,775.7,775.35,0.86280618]
[1754584310992,0.812,775.7,775.34,0.86280618]
[1754584311293,0.812,775.7,775.33,0.86280618]
[1754584312393,0.812,775.7,775.31,0.86280618]
[1754584313894,0.812,775.7,775.3,0.86280618]
[1754584314293,0.812,775.7,775.29,0.86280618]
[1754584314590,0.812,775.7,775.3,0.86280618]
[1754584315093,0.812,775.7,775.31,0.86280618]
[1754584315290,0.812,775.7,775.3,0.86280618]
[1754584315692,0.812,775.7,775.31,0.86280618]
[1754584315993,0.812,775.7,775.32,0.86280618]
[1754584317192,0.812,775.7,775.31,0.86280618]
[1754584317596,0.812,775.7,775.32,0.86280618]
[1754584318397,0.812,775.7,775.31,0.86280618]
[1754584320098,0.812,775.7,775.32,0.86280618]
[1754584320999,0.812,775.7,775.33,0.86280618]
[1754584321197,0.812,775.7,775.31,0.86280618]
[1754584321897,0.812,775.7,775.3,0.86280618]
[1754584322497,0.812,775.7,775.29,0.86280618]
[1754584322793,0.812,775.7,775.3,0.86280618]
[1754584323195,0.812,775.7,775.29,0.86280618]
[1754584324194,0.812,775.7,775.28,0.86280618]
[1754584324400,0.812,775.7,775.3,0.86280618]
[1754584324599,0.812,775.7,775.31,0.86280618]
[1754584324897,0.812,775.7,775.3,0.86280618]
[1754584325397,0.812,775.7,775.29,0.86280618]
[1754584326096,0.812,775.7,775.3,0.86280618]
[1754584326296,0.812,775.7,775.29,0.86280618]
[1754584327397,0.812,775.7,775.28,0.86280618]
[1754584331202,0.812,775.7,775.29,0.86280618]
[1754584334504,0.812,775.7,775.28,0.86280618]
[1754584334705,0.812,775.7,775.29,0.86280618]
[1754584335902,0.812,775.7,775.26,0.86280618]
[1754584336103,0.812,775.7,775.27,0.86280618]
[1754584337506,0.812,775.7,775.22,0.86280618]
[1754584337706,0.812,775.7,775.0,1.14848254]
[1754584337707,0.812,775.7,775.24,0.86280618]
[1754584338708,0.812,775.7,775.19,0.86280618]
[1754584338905,0.812,775.7,775.24,0.86280618]
[1754584339209,0.983,775.69,775.24,0.86280618]
[1754584340612,0.983,775.69,775.25,0.86280618]
[1754584341205,0.983,775.69,775.31,0.86280618]
[1754584341410,0.983,775.69,775.36,0.86280618]
[1754584341707,0.983,775.69,775.4,0.86280618]
[1754584342312,0.983,775.69,775.41,0.86280618]
[1754584344314,0.983,775.69,775.42,0.86280618]
[1754584345015,0.983,775.69,775.41,0.86280618]
[1754584345710,0.983,775.69,775.4,0.86280618]
[1754584346310,0.983,775.69,774.53,2.861232]
[1754584346311,0.983,775.69,775.41,0.86280618]
[1754584346812,0.983,775.69,775.32,0.86280618]
[1754584347011,0.983,775.69,775.31,0.86280618]
[1754584347214,0.983,775.69,775.32,0.86280618]
[1754584348213,0.983,775.69,775.33,0.86280618]
[1754584348410,0.983,775.69,775.32,0.86280618]
[1754584349408,0.983,775.69,775.12,1.14848254]
[1754584349409,0.983,775.69,775.33,0.86280618]
[1754584350316,0.983,775.69,775.34,0.86280618]
[1754584351214,0.983,775.69,775.36,0.86280618]
[1754584351618,0.846,775.68,775.36,0.86280618]
[1754584352418,0.846,775.68,775.4,0.86280618]
[1754584352714,0.846,775.68,775.34,0.86280618]
[1754584352914,0.846,775.68,775.32,0.86280618]
[1754584353115,0.846,775.68,775.27,0.86280618]
[1754584353314,0.846,775.68,775.29,0.86280618]
[1754584353720,0.846,775.68,775.27,0.86280618]
[1754584353915,0.846,775.68,774.47,0.22428895]
[1754584353916,0.846,775.68,775.24,0.86280618]
[1754584354419,0.846,775.68,775.26,0.86280618]
[1754584355919,0.846,775.68,775.28,0.86280618]
[1754584356317,0.846,775.68,775.29,0.86280618]
[1754584356921,0.846,775.68,775.3,0.86280618]
[1754584357316,0.846,775.68,775.31,0.86280618]
[1754584358221,0.846,775.68,775.32,0.86280618]
[1754584359320,0.846,775.68,774.47,0.22428895]
[1754584359321,0.846,775.68,775.33,0.86280618]
[1754584360317,0.846,775.68,775.34,0.86280618]
[1754584360718,0.846,775.68,775.35,0.86280618]
[1754584361422,0.846,775.68,775.36,0.86280618]
[1754584361922,0.846,775.68,775.38,0.86280618]
[1754584362422,0.846,775.68,775.39,0.86280618]
[1754584363218,0.846,775.68,775.43,0.86280618]
[1754584364320,0.846,775.68,775.3,1.14848254]
[1754584364618,0.846,775.68,775.44,0.86440075]
[1754584368326,0.846,775.68,775.42,0.86440075]
[1754584368820,0.846,775.68,775.43,0.86440075]
[1754584369227,0.846,775.68,775.44,0.86440075]
[1754584371127,0.846,775.68,775.43,0.86440075]
[1754584371628,0.846,775.68,775.42,0.86440075]
[1754584372030,0.846,775.68,775.41,0.86440075]
[1754584372329,0.846,775.68,775.39,0.86440075]
[1754584373022,0.846,775.68,775.37,0.86440075]
[1754584374127,0.846,775.68,775.39,0.86440075]
[1754584374522,0.846,775.68,775.38,0.86440075]
[1754584374723,0.846,775.68,775.39,0.86440075]
[1754584374927,0.846,775.68,775.36,0.86440075]
[1754584375330,0.846,775.68,775.32,0.86440075]
[1754584375523,0.846,775.68,775.29,0.86440075]
[1754584375924,0.846,775.68,775.22,0.86440075]
[1754584376428,0.846,775.68,775.21,0.86440075]
[1754584376724,0.869,775.67,775.21,0.86440075]
[1754584377125,0.869,775.67,775.22,0.86440075]
[1754584377326,0.869,775.67,775.21,0.86440075]
[1754584377625,0.869,775.67,775.2,0.86440075]
[1754584379427,0.869,775.67,775.19,0.86440075]
[1754584382332,0.869,775.67,775.18,0.86440075]
[1754584382832,0.869,775.67,775.19,0.86440075]
[1754584383726,0.869,775.67,775.21,0.86440075]
[1754584384726,0.869,775.67,775.2,0.86440075]
[1754584384931,0.869,775.67,775.21,0.86440075]
[1754584385132,0.869,775.67,775.25,0.86440075]
[1754584385329,0.869,775.67,775.28,0.86440075]
[1754584388731,0.869,775.67,775.29,0.86440075]
[1754584388929,0.869,775.67,775.3,0.86440075]
[1754584390037,0.799,775.66,775.3,0.86440075]
[1754584391437,0.799,775.66,775.29,0.86440075]
[1754584395038,0.799,775.66,775.3,0.86440075]
[1754584396141,0.799,775.66,775.31,0.86440075]
[1754584398737,0.799,775.66,775.18,1.14848254]
[1754584398738,0.799,775.66,775.34,0.86440075]
[1754584399343,0.799,775.66,775.35,0.86440075]
[1754584399642,0.799,775.66,775.37,0.86440075]
[1754584400139,0.799,775.66,775.38,0.86440075]
[1754584401644,0.799,775.66,775.42,0.86440075]
[1754584401940,0.799,775.66,775.47,0.86440075]
[1754584402339,0.799,775.66,775.48,0.86440075]
[1754584402843,0.799,775.66,775.47,0.86440075]
[1754584403345,0.799,775.66,775.48,0.86440075]
[1754584405051,0.799,775.66,775.45,0.86440075]
[1754584405351,0.799,775.66,775.46,0.86440075]
[1754584408353,0.799,775.66,775.47,0.86440075]
[1754584408751,0.799,775.66,775.45,0.86440075]
[1754584409052,0.799,775.66,774.88,0.22429184]
[1754584409053,0.799,775.66,775.44,0.86440075]
[1754584409254,0.799,775.66,775.45,0.86440075]
[1754584412255,0.799,775.66,775.46,0.86440075]
[1754584412657,0.799,775.66,775.48,0.86440075]
[1754584412958,0.86778978,776.21,775.48,0.86440075]
[1754584413153,1.28366961,776.2,775.48,0.86440075]
[1754584413354,1.28366961,776.19,775.48,0.86440075]
[1754584413554,1.28366961,776.18,775.48,0.86440075]
[1754584413760,1.28366961,776.17,775.48,0.86440075]
[1754584413960,1.28366961,776.16,775.48,0.86440075]
[1754584414160,1.28366961,776.15,775.5,0.86440075]
[1754584414360,1.28366961,776.14,775.5,0.86440075]
[1754584414658,1.28366961,776.13,775.5,0.86440075]
[1754584414857,1.28366961,776.12,775.53,0.86440075]
[1754584415056,1.28366961,776.11,775.53,0.86440075]
[1754584415255,0.8581559,776.1,775.54,0.86440075]
[1754584415459,0.8581559,776.09,775.54,0.86440075]
[1754584415658,0.8581559,776.08,775.55,0.86264894]
[1754584415860,0.8581559,776.07,775.55,0.86264894]
[1754584416156,0.85817492,776.06,775.55,0.86264894]
[1754584416358,1.172,776.23,775.54,0.86264894]
[1754584416557,1.28359874,776.22,775.54,0.86264894]
[1754584416757,1.28359874,776.21,775.54,0.86264894]
[1754584416959,1.28359874,776.2,775.56,0.86264894]
[1754584417164,1.28359874,776.19,775.58,0.86264894]
[1754584417365,1.28359874,776.18,775.6,0.86264894]
[1754584417662,1.28359874,776.17,775.6,0.86264894]
[1754584417862,1.28359874,776.16,775.61,0.86264894]
[1754584418062,1.28359874,776.15,775.6,0.86264894]
[1754584418265,0.85810917,776.14,775.59,0.86264894]
[1754584418462,0.85810917,776.13,775.59,0.86264894]
[1754584418867,0.85783458,776.12,775.59,0.86264894]
[1754584419062,1.172,776.23,775.59,0.86264894]
[1754584419268,1.28314458,776.22,775.61,0.86264894]
[1754584419462,1.28314458,776.21,775.64,0.86264894]
[1754584419768,1.28314458,776.2,775.68,0.86264894]
[1754584419966,1.28300625,776.19,775.68,0.86264894]
[1754584420171,1.28300625,776.18,775.68,0.86264894]
[1754584420370,1.28300625,776.17,775.67,0.86264894]
[1754584420570,0.85771364,776.16,775.67,0.86264894]
[1754584420870,0.85771364,776.15,775.67,0.86264894]
[1754584421064,0.85771364,776.14,775.67,0.86264894]
[1754584421266,1.172,776.23,775.66,0.86264894]
[1754584421466,0.85737655,776.22,775.66,0.86264894]
[1754584421666,1.172,776.23,775.66,0.86264894]
[1754584421969,0.85734085,776.22,775.66,0.86264894]
[1754584422269,1.172,776.23,775.65,0.86264894]
[1754584423365,1.172,776.23,775.64,0.86264894]
[1754584424368,1.172,776.23,774.88,0.22429184]
[1754584424369,1.172,776.23,775.63,0.86264894]
[1754584425569,1.172,776.23,775.62,0.86264894]
[1754584426565,1.172,776.23,775.56,0.86264894]
[1754584427070,1.172,776.23,775.55,0.86264894]
[1754584427270,1.172,776.23,775.52,0.86264894]
[1754584427572,1.172,776.23,775.53,0.86264894]
[1754584430369,1.172,776.23,775.34,1.14848254]
[1754584430370,1.172,776.23,775.52,0.86264894]
[1754584432271,1.172,776.23,775.51,0.86264894]
[1754584433872,1.172,776.23,775.52,0.86264894]
[1754584434168,1.172,776.23,775.51,0.86264894]
[1754584435274,1.172,776.23,775.5,0.86264894]
[1754584435973,1.172,776.23,775.51,0.86264894]
[1754584436470,1.172,776.23,775.54,0.86264894]
[1754584438077,1.172,776.23,775.53,0.86264894]
[1754584438673,0.22423692,776.38,775.53,0.86264894]
[1754584438876,1.28040395,776.37,775.51,0.86264894]
[1754584439174,1.28040395,776.36,775.51,0.86264894]
[1754584439373,1.28040395,776.35,775.51,0.86264894]
[1754584439575,0.22423692,776.38,775.51,0.86264894]
[1754584439576,1.28040395,776.34,775.51,0.86264894]
[1754584439779,1.28040395,776.33,775.51,0.86264894]
[1754584439975,0.85597496,776.32,775.51,0.86264894]
[1754584440178,0.85597496,776.31,775.51,0.86264894]
[1754584440478,0.85597496,776.3,775.51,0.86264894]
[1754584440675,0.85597496,776.29,775.52,0.86264894]
[1754584440878,0.85597496,776.28,775.52,0.86264894]
[1754584441178,0.85597496,776.27,775.52,0.86264894]
[1754584441474,0.85597496,776.26,775.52,0.86264894]
[1754584441674,0.85597496,776.25,775.52,0.86264894]
[1754584441974,0.22423692,776.38,775.52,0.86264894]
[1754584442175,1.28068674,776.37,775.52,0.86264894]
[1754584442378,1.28068674,776.36,775.53,0.86264894]
[1754584442580,1.28068674,776.35,775.53,0.86264894]
[1754584442780,1.28068674,776.34,775.53,0.86264894]
[1754584442980,1.28068674,776.33,775.53,0.86264894]
[1754584443177,1.28068674,776.32,775.53,0.86264894]
[1754584443477,0.22423692,776.38,775.54,0.86264894]
[1754584443478,1.28078835,776.31,775.54,0.86264894]
[1754584443680,0.85616392,776.3,775.54,0.86264894]
[1754584443980,0.85616392,776.29,775.54,0.86264894]
[1754584444181,0.85616392,776.28,775.54,0.86264894]
[1754584444481,0.85649293,776.27,775.54,0.86264894]
[1754584444681,0.85649293,776.26,775.54,0.86264894]
[1754584444881,0.22423692,776.38,775.54,0.86264894]
[1754584444882,0.85649293,776.25,775.54,0.86264894]
[1754584445079,0.22423692,776.38,775.54,0.86264894]
[1754584445283,0.769,776.24,775.54,0.86264894]
[1754584446580,0.769,776.24,775.55,0.86264894]
[1754584447285,0.769,776.24,775.56,0.86264894]
[1754584448285,0.769,776.24,775.57,0.86264894]
[1754584448788,0.769,776.24,775.21,1.72272381]
[1754584448789,0.769,776.24,775.59,0.86264894]
[1754584449284,0.769,776.24,775.58,0.86264894]
[1754584450289,0.769,776.24,775.59,0.86264894]
[1754584450991,0.769,776.24,775.6,0.86264894]
[1754584452290,0.769,776.24,775.61,0.86264894]
[1754584452690,0.769,776.24,775.62,0.86264894]
[1754584453196,0.85651663,776.23,775.62,0.86264894]
[1754584453389,0.769,776.24,775.63,0.86264894]
[1754584453587,0.85662517,776.23,775.63,0.86264894]
[1754584453790,0.769,776.24,775.63,0.86264894]
[1754584453991,0.85662522,776.23,775.63,0.86264894]
[1754584454188,0.85662522,776.22,775.65,0.86264894]
[1754584454386,0.769,776.24,775.65,0.86264894]
[1754584454387,0.85662522,776.21,775.65,0.86264894]
[1754584454590,0.85662522,776.2,775.64,0.86264894]
[1754584454789,0.769,776.24,775.64,0.86264894]
[1754584455092,0.85676103,776.23,775.64,0.86264894]
[1754584455288,0.85676103,776.22,775.65,0.86264894]
[1754584455588,0.85676103,776.21,775.65,0.86264894]
[1754584455789,0.85676103,776.2,775.66,0.86264894]
[1754584455991,0.769,776.24,775.66,0.86264894]
[1754584456195,0.85690896,776.23,775.66,0.86264894]
[1754584456394,0.85690896,776.22,775.67,0.86264894]
[1754584456591,0.85690896,776.21,775.67,0.86264894]
[1754584456794,0.85690896,776.2,775.67,0.86264894]
[1754584456994,0.85690896,776.19,775.66,0.86264894]
[1754584457195,0.769,776.24,775.67,0.86264894]
[1754584457392,1.28242914,776.23,775.67,0.86264894]
[1754584457596,0.85709012,776.22,775.67,0.86264894]
[1754584457796,0.85709012,776.21,775.67,0.86264894]
[1754584457997,0.85709012,776.2,775.67,0.86264894]
[1754584458193,0.85709012,776.19,775.67,0.86264894]
[1754584458395,0.85709012,776.18,775.68,0.86264894]
[1754584458594,0.85709012,776.17,775.68,0.86264894]
[1754584458891,0.769,776.24,775.68,0.86264894]
[1754584459093,1.28291596,776.23,775.68,0.86264894]
[1754584459296,1.28291596,776.22,775.68,0.86264894]
[1754584459496,1.28291596,776.21,775.68,0.86264894]
[1754584459694,0.85747267,776.2,775.68,0.86264894]
[1754584459897,0.85747267,776.19,775.68,0.86264894]
[1754584460197,0.85747267,776.18,775.68,0.86264894]
[1754584460397,0.85747267,776.17,775.69,0.86264894]
[1754584460594,0.85747267,776.16,775.69,0.86264894]
[1754584460803,0.769,776.24,775.69,0.86264894]
[1754584461105,1.28339039,776.23,775.69,0.86264894]
[1754584461403,1.28339039,776.22,775.7,0.86264894]
[1754584461599,1.28339039,776.21,775.7,0.86264894]
[1754584461902,1.28339039,776.2,775.7,0.86264894]
[1754584462100,0.85778977,776.19,775.7,0.86264894]
[1754584462302,0.769,776.24,775.7,0.86264894]
[1754584462502,1.28368643,776.23,775.7,0.86264894]
[1754584462702,1.28368643,776.22,775.7,0.86264894]
[1754584462903,1.28368643,776.21,775.7,0.86264894]
[1754584463104,1.28368643,776.2,775.7,0.86264894]
[1754584463304,1.28368643,776.19,775.7,0.86264894]
[1754584463608,0.85798764,776.18,775.7,0.86264894]
[1754584463907,0.85798764,776.17,775.7,0.86264894]
[1754584464108,0.85798764,776.16,775.7,0.86264894]
[1754584464403,0.85798764,776.15,775.7,0.86264894]
[1754584464607,0.769,776.24,775.7,0.86264894]
[1754584464801,1.28386297,776.23,775.7,0.86264894]
[1754584465004,1.28386297,776.22,775.7,0.86264894]
[1754584465307,1.28386297,776.21,775.71,0.86264894]
[1754584465508,1.28386297,776.2,775.71,0.86264894]
[1754584465708,1.28386297,776.19,775.71,0.86264894]
[1754584465909,0.85810564,776.18,775.71,0.86264894]
[1754584466106,0.85810564,776.17,775.71,0.86264894]
[1754584466305,0.85810564,776.16,775.71,0.86264894]
[1754584466607,0.85810564,776.15,775.69,0.86264894]
[1754584466804,0.769,776.24,775.69,0.86264894]
[1754584467002,1.28407506,776.23,775.69,0.86264894]
[1754584467207,1.28407506,776.22,775.69,0.86264894]
[1754584467504,1.28407506,776.21,775.69,0.86264894]
[1754584467703,1.28407506,776.2,775.69,0.86264894]
[1754584467904,0.8582474,776.19,775.69,0.86264894]
[1754584468108,0.8582474,776.18,775.69,0.86264894]
[1754584468304,0.8582474,776.17,775.69,0.86264894]
[1754584468508,0.8582474,776.16,775.69,0.86264894]
[1754584468708,0.8582474,776.15,775.69,0.86264894]
[1754584468908,0.769,776.24,775.68,0.86264894]
[1754584469103,1.28433004,776.23,775.68,0.86264894]
[1754584469304,1.28433004,776.22,775.69,0.86264894]
[1754584469503,1.28433004,776.21,775.69,0.86264894]
[1754584469701,1.28433004,776.2,775.69,0.86264894]
[1754584469908,0.85841782,776.19,775.69,0.86264894]
[1754584470204,0.85841782,776.18,775.69,0.86264894]
[1754584470410,0.85841782,776.17,775.69,0.86264894]
[1754584470604,0.85841782,776.16,775.69,0.86264894]
[1754584470808,0.85841782,776.15,775.69,0.86264894]
[1754584471006,0.769,776.24,775.69,0.86261428]
[1754584471405,1.28498697,776.23,775.7,0.86261428]
[1754584471610,1.28498697,776.22,775.7,0.86261428]
[1754584471810,1.28498697,776.21,775.7,0.86261428]
[1754584472111,1.28498697,776.2,775.7,0.86261428]
[1754584472311,1.28508493,776.19,775.69,0.86261428]
[1754584472513,0.8588529,776.18,775.68,0.86261428]
[1754584472712,0.8588529,776.17,775.64,0.86261428]
[1754584472912,0.8588529,776.16,775.64,0.86261428]
[1754584473113,0.8588529,776.15,775.64,0.86261428]
[1754584473314,1.28509199,776.14,775.65,0.86261428]
[1754584473517,1.28509199,776.13,775.65,0.86261428]
[1754584473714,0.8588529,776.12,775.65,0.86261428]
[1754584473916,0.8588529,776.11,775.65,0.86261428]
[1754584474215,0.8588529,776.1,775.65,0.86261428]
[1754584474409,0.8588529,776.09,775.66,0.86261428]
[1754584474714,0.8588529,776.08,775.65,0.86261428]
[1754584474914,0.769,776.24,775.65,0.86261428]
[1754584475110,1.28584234,776.23,775.65,0.86261428]
[1754584475313,1.28584234,776.22,775.66,0.86261428]
[1754584475613,1.28584234,776.21,775.66,0.86261428]
[1754584475811,1.28584234,776.2,775.66,0.86261428]
[1754584476008,1.28584234,776.19,775.66,0.86261428]
[1754584476211,1.28584234,776.18,775.66,0.86261428]
[1754584476412,1.28584234,776.17,775.67,0.86261428]
[1754584476609,1.28584234,776.16,775.67,0.86261428]
[1754584476811,1.28584234,776.15,775.67,0.86261428]
[1754584477110,1.28584234,776.14,775.67,0.86261428]
[1754584477310,1.28584234,776.13,775.67,0.86261428]
[1754584477512,1.28584234,776.12,775.67,0.86261428]
[1754584477715,1.28584234,776.11,775.67,0.86261428]
[1754584477912,1.28584234,776.1,775.67,0.86261428]
[1754584478113,0.85942791,776.09,775.67,0.86261428]
[1754584478313,0.85942791,776.08,775.67,0.86261428]
[1754584478516,0.85942791,776.07,775.68,0.86261428]
[1754584478817,0.85942791,776.06,775.68,0.86261428]
[1754584479114,0.85942791,776.05,775.68,0.86261428]
[1754584479315,0.8679645,776.24,775.68,0.86261428]
[1754584479512,1.28643275,776.23,775.68,0.86261428]
[1754584479712,1.28643275,776.22,775.68,0.86261428]
[1754584479917,1.28643275,776.21,775.68,0.86261428]
[1754584480117,0.8679645,776.23,775.69,0.86261428]
[1754584480314,1.28643275,776.22,775.68,0.86261428]
[1754584480519,1.28643275,776.21,775.68,0.86261428]
[1754584480718,1.28643275,776.2,775.68,0.86261428]
[1754584480914,1.28643275,776.19,775.68,0.86261428]
[1754584481119,0.85982249,776.18,775.68,0.86261428]
[1754584481319,1.28643699,776.17,775.68,0.86261428]
[1754584481617,1.28643699,776.16,775.68,0.86261428]
[1754584481815,1.28643699,776.15,775.68,0.86261428]
[1754584482016,1.28643699,776.14,775.68,0.86261428]
[1754584482219,1.28643699,776.13,775.7,0.86261428]
[1754584482419,1.28643699,776.12,775.7,0.86261428]
[1754584482620,1.28643699,776.11,775.7,0.86261428]
[1754584482822,1.28643699,776.1,775.7,0.86261428]
[1754584483120,1.28643699,776.09,775.7,0.86261428]
[1754584483322,1.28643699,776.08,775.69,0.86261428]
[1754584483524,0.85982249,776.07,775.69,0.86261428]
[1754584483723,0.85982249,776.06,775.69,0.86261428]
[1754584484023,0.85982249,776.05,775.69,0.86261428]
[1754584484223,0.85982249,776.04,775.7,0.86261428]
[1754584484423,0.85982249,776.03,775.7,0.86261428]
[1754584484721,0.8679645,776.21,775.7,0.86261428]
[1754584484920,1.28633791,776.2,775.7,0.86261428]
[1754584485118,1.28633791,776.19,775.7,0.86261428]
[1754584485319,1.28633791,776.18,775.7,0.86261428]
[1754584485523,1.28633791,776.17,775.7,0.86261428]
[1754584485719,1.28633791,776.16,775.69,0.86261428]
[1754584485921,1.28633791,776.15,775.69,0.86261428]
[1754584486121,1.28681518,776.14,775.69,0.86261428]
[1754584486420,1.28681518,776.13,775.69,0.86261428]
[1754584486624,1.28681518,776.12,775.69,0.86261428]
[1754584486821,1.28681518,776.11,775.69,0.86261428]
[1754584487026,1.28681518,776.1,775.69,0.86261428]
[1754584487327,1.28681518,776.09,775.69,0.86261428]
[1754584487523,1.28681518,776.08,775.69,0.86261428]
[1754584487733,0.8597591,776.07,775.69,0.86261428]
[1754584488025,0.8597591,776.06,775.69,0.86261428]
[1754584488230,1.28680643,776.05,775.69,0.86261428]
[1754584488426,0.8597591,776.04,775.69,0.86261428]
[1754584488626,0.8597591,776.03,775.69,0.86261428]
[1754584488826,0.8597591,776.02,775.69,0.86261428]
[1754584489026,0.759,776.18,775.69,0.86261428]
[1754584489227,1.286711,776.17,775.69,0.86261428]
[1754584489429,1.286711,776.16,775.69,0.86261428]
[1754584489630,1.286711,776.15,775.69,0.86261428]
[1754584489827,1.286711,776.14,775.69,0.86261428]
[1754584490026,1.286711,776.13,775.69,0.86261428]
[1754584490229,1.286711,776.12,775.67,0.86261428]
[1754584490428,1.286711,776.11,775.67,0.86261428]
[1754584490626,1.286711,776.1,775.66,0.86261428]
[1754584490833,0.85966028,776.09,775.64,0.86261428]
[1754584491028,0.85966028,776.08,775.64,0.86261428]
[1754584491232,0.85966028,776.07,775.64,0.86261428]
[1754584491432,0.85966028,776.06,775.64,0.86261428]
[1754584491628,0.736,776.15,775.64,0.86261428]
[1754584491929,1.28653784,776.14,775.64,0.86261428]
[1754584492131,1.28653784,776.13,775.65,0.86261428]
[1754584492333,1.28653784,776.12,775.65,0.86261428]
[1754584492631,1.28653784,776.11,775.65,0.86261428]
[1754584492933,0.85956863,776.1,775.65,0.86261428]
[1754584493134,0.85956863,776.09,775.65,0.86261428]
[1754584493434,0.85956863,776.08,775.65,0.86261428]
[1754584493733,0.85956863,776.07,775.65,0.86261428]
[1754584493930,0.85956863,776.06,775.65,0.86261428]
[1754584494134,0.736,776.15,775.7,0.86261428]
[1754584494331,1.28655643,776.14,775.69,0.86261428]
[1754584494532,1.28655643,776.13,775.69,0.86261428]
[1754584494735,1.28655643,776.12,775.69,0.86261428]
[1754584495035,1.28655643,776.11,775.69,0.86261428]
[1754584495235,0.85958105,776.1,775.69,0.86261428]
[1754584495435,0.85958105,776.09,775.68,0.86261428]
[1754584495636,0.85958105,776.08,775.68,0.86261428]
[1754584495832,0.85958105,776.07,775.68,0.86261428]
[1754584496034,0.736,776.15,775.68,0.86261428]
[1754584496235,1.28657441,776.14,775.68,0.86261428]
[1754584496435,0.85959306,776.13,775.68,0.86261428]
[1754584496637,0.85959306,776.12,775.67,0.86261428]
[1754584496836,0.85959306,776.11,775.67,0.86261428]
[1754584497034,0.736,776.15,775.64,0.86261428]
[1754584498238,0.736,776.15,775.61,0.86261428]
[1754584498938,0.736,776.15,775.62,0.86261428]
[1754584499239,0.736,776.15,775.64,0.86261428]
[1754584500941,0.736,776.15,775.65,0.86261428]
[1754584504340,0.736,776.15,775.66,0.86261428]
[1754584504943,0.759,776.18,775.66,0.86261428]
[1754584506640,0.759,776.18,775.68,0.86261428]
[1754584507141,0.968,776.17,775.68,0.86261428]
[1754584507745,0.968,776.17,775.73,0.86261428]
[1754584508246,0.968,776.17,775.75,0.86261428]
[1754584508742,0.968,776.17,775.76,0.86261428]
[1754584508946,0.85920149,776.16,775.76,0.86261428]
[1754584509146,0.968,776.17,775.76,0.86261428]
[1754584509342,0.85919492,776.16,775.75,0.86261428]
[1754584509547,0.968,776.17,775.77,0.86261428]
[1754584509746,0.968,776.17,775.76,0.86261428]
[1754584510047,0.85921587,776.16,775.76,0.86261428]
[1754584510248,0.85921587,776.15,775.76,0.86261428]
[1754584510444,0.85921587,776.14,775.77,0.86261428]
[1754584510647,0.85921587,776.13,775.77,0.86261428]
[1754584510847,0.85921587,776.12,775.77,0.86261428]
[1754584511049,0.85921587,776.11,775.77,0.86261428]
[1754584511246,0.85921587,776.1,775.77,0.86261428]
[1754584511445,0.85921587,776.09,775.77,0.86261428]
[1754584511746,0.85921587,776.08,775.76,0.86261428]
[1754584512049,0.85921587,776.07,775.76,0.86261428]
[1754584512245,0.85921587,776.06,775.74,0.86261428]
[1754584512450,0.85921587,776.05,775.74,0.86261428]
[1754584512649,0.968,776.17,775.74,0.86261428]
[1754584512849,0.85922326,776.16,775.74,0.86261428]
[1754584513047,0.85922326,776.15,775.74,0.86261428]
[1754584513250,0.85922326,776.14,775.74,0.86261428]
[1754584513450,0.85922326,776.13,775.74,0.86261428]
[1754584513647,0.85922326,776.12,775.74,0.86261428]
[1754584513851,0.85922326,776.11,775.74,0.86261428]
[1754584514151,0.85922326,776.1,775.74,0.86261428]
[1754584514351,0.85922326,776.09,775.74,0.86261428]
[1754584514552,0.85922326,776.08,775.74,0.86261428]
[1754584514752,0.85922326,776.07,775.74,0.86261428]
[1754584515054,0.85922326,776.07,775.68,0.86261428]
[1754584515254,0.85915301,776.06,775.66,0.86261428]
[1754584515454,0.85915301,776.06,774.88,0.22429184]
[1754584515455,0.85915301,776.05,775.64,0.86261428]
[1754584515652,0.968,776.17,775.64,0.86261428]
[1754584515856,0.8591401,776.16,775.64,0.86261428]
[1754584516056,0.8591401,776.15,775.64,0.86261428]
[1754584516252,0.8591401,776.14,775.64,0.86261428]
[1754584516452,0.8591401,776.13,775.64,0.86261428]
[1754584516652,0.8591401,776.12,775.64,0.86261428]
[1754584516963,0.8591401,776.11,775.64,0.86261428]
[1754584517164,0.8591401,776.1,775.67,0.86261428]
[1754584517365,0.968,776.17,775.67,0.86261428]
[1754584517366,0.8591401,776.09,775.67,0.86261428]